fUSD/lending_fUSD_20241108
["ID","MTS","AMOUNT","RATE_DAILY","PERIOD"]
[341667543,1731077440993,-3000.0,0.0003067,2]
[341667545,1731077441002,-3000.0,0.0003067,2]
[341667547,1731077441011,-3000.0,0.0003067,2]
[341667549,1731077441020,-200.0,0.00030684,2]
[341667550,1731077441029,-2000.0,0.00030685,2]
[341667552,1731077441039,-3000.0,0.00030685,7]
[341667555,1731077441048,-986.76,0.00030696,2]
[341667557,1731077441057,-151.0,0.000307,7]
[341667558,1731077441066,-151.0,0.000307,7]
[341667561,1731077441076,-151.0,0.000307,7]
[341667563,1731077441088,-195.395027,0.000307,7]
[341667565,1731077441097,-195.395027,0.000307,7]
[341667567,1731077441107,-250.0,0.000308,30]
[341667569,1731077441116,-900.0,0.000309,11]
[341667571,1731077441125,-430.08,0.00030931,120]
[341667573,1731077441134,-200.0,0.00030958,2]
[341667575,1731077441143,-2000.0,0.00030959,2]
[341667576,1731077441153,-3000.0,0.00030959,7]
[341667579,1731077441164,-300.0,0.00031,5]
[341667581,1731077441173,-6269.69964532,0.00031,14]
[341667583,1731077441182,-1366.0,0.00031,19]
[341667585,1731077441191,-13674.49547339,0.00031,2]
[341667588,1731077441219,-379.815,0.00031,2]
[341667593,1731077441262,-281.3614,0.00031,2]
[341667594,1731077441301,-1923.04560288,0.00031,2]
[341667610,1731077444177,-151.0,0.0003,7]
[341667612,1731077444187,-151.0,0.00030411,7]
[341667613,1731077444196,-151.0,0.000305,7]
[341667616,1731077444206,-2484.20064947,0.00031,2]
[341667618,1731077444217,-2286.63521867,0.00031,2]
[341667620,1731077444228,-16991.55621362,0.00031,2]
[341667621,1731077444239,-26141.04394872,0.00031,2]
[341667622,1731077444251,-526.6052595,0.00031,2]
[341667640,1731077445469,-501.745759,0.0003,2]
[341667642,1731077445480,-1000.0,0.000302,2]
[341667644,1731077445490,-2338.86861275,0.00031,2]
[341667647,1731077445503,-3551.04714063,0.00031,2]
[341667649,1731077445517,-935.48,0.00031,2]
[341667732,1731077446088,-733.13509717,0.00031,2]
[341667737,1731077446403,-385.66490629,0.00031,2]
[341668103,1731077450462,5000.0,0.00027,60]
[341668207,1731077451440,150.0,0.0001919,2]
[341668240,1731077451757,150.0,0.00019185,2]
[341668245,1731077451793,150.0,0.00019195,2]
[341668249,1731077451817,95.48543048,0.00019195,2]
[341668312,1731077452409,54.51456952,0.00015929,2]
[341668316,1731077452431,95.48543048,0.00015929,2]
[341668319,1731077452458,54.51456952,0.00015993,2]
[341668323,1731077452480,95.48543048,0.00015993,2]
[341668327,1731077452508,54.51456952,0.00015746,2]
[341668330,1731077452530,95.48543048,0.00015746,2]
[341668338,1731077452587,54.51456952,0.00015773,2]
[341668341,1731077452615,95.48543048,0.00015773,2]
[341668369,1731077452970,54.51456952,0.00015977,2]
[341668371,1731077452994,95.48543048,0.00015977,2]
[341668372,1731077453053,54.51456952,0.00015892,2]
[341668374,1731077453075,95.48543048,0.00015892,2]
[341668375,1731077453196,54.51456952,0.00015728,2]
[341668376,1731077453219,95.48543048,0.00015728,2]
[341668377,1731077453349,54.51456952,0.00015852,2]
[341668378,1731077453375,95.48543048,0.00015852,2]
[341668379,1731077453435,54.51456952,0.0001597,2]
[341668380,1731077453459,95.48543048,0.0001597,2]
[341668381,1731077453506,54.51456952,0.00015752,2]
[341668382,1731077453528,150.0,0.00015752,2]
[341668383,1731077453551,40.3691272,0.00015752,2]
[341668384,1731077487425,150.0,0.0002,2]
[341668385,1731077487447,144.0,0.0002,2]
[341668386,1731077548180,153.98,0.00015342,2]
[341668387,1731077550429,1005.0,0.00027,120]
[341668390,1731077582078,150.0,0.00019725,2]
[341668391,1731077582100,150.0,0.00019725,2]
[341668392,1731077599511,150.0,0.00018123,2]
[341668394,1731077641376,300.0,0.00019725,2]
[341668396,1731077701322,150.0,0.00019725,2]
[341668397,1731077701345,150.0,0.00019725,2]
[341668398,1731077762079,150.0,0.00019725,2]
[341668401,1731077881444,150.0,0.00019725,2]
[341668402,1731078003418,150.0,0.00019725,2]
[341668406,1731078262694,190.08,0.00015342,2]
[341668416,1731078631890,-190.08,0.00021745,2]
[341668417,1731078631901,-268.90179632,0.000244,3]
[341668418,1731078631925,-2503.09820368,0.000244,3]
[341668419,1731078631939,-716.00179632,0.00025831,2]
[341668420,1731078631995,-80.81572439,0.00025831,2]
[341668421,1731078632006,-796.81752071,0.00025845,2]
[341668422,1731078632016,-796.81752071,0.00025854,2]
[341668423,1731078632028,-796.81752071,0.00025869,2]
[341668424,1731078632038,-796.81752071,0.0002587,2]
[341668425,1731078632049,-796.81752071,0.00025882,2]
[341668426,1731078632059,-421.13,0.00027,2]
[341668427,1731078632069,-1167.97,0.00027136,2]
[341668428,1731078632079,-1304.487,0.00027142,2]
[341668429,1731078632090,-543.724,0.00027142,2]
[341668430,1731078632100,-150.0,0.00027142,2]
[341668431,1731078632111,-946.22,0.000277,2]
[341668432,1731078632124,-559.49,0.00028147,2]
[341668433,1731078632134,-190.08,0.00028147,2]
[341668434,1731078632144,-530.13,0.00028743,2]
[341668435,1731078632154,-153.98,0.00028858,2]
[341668436,1731078632165,-314.66,0.00029,2]
[341668437,1731078632175,-1012.6,0.00029,2]
[341668438,1731078632185,-151.55,0.00029044,120]
[341668439,1731078632195,-530.13,0.00029204,2]
[341668441,1731078632206,-158.14,0.00029228,2]
[341668443,1731078632217,-200.0,0.0002924,7]
[341668444,1731078632227,-158.14,0.00029245,2]
[341668445,1731078632237,-250.0,0.00029252,2]
[341668446,1731078632247,-158.14,0.00029262,2]
[341668447,1731078632258,-1000.0,0.00029264,2]
[341668448,1731078632268,-158.14,0.0002928,2]
[341668449,1731078632473,-174.85,0.0002929,2]
[341668450,1731078632497,-158.14,0.00029297,2]
[341668451,1731078632507,-157.14,0.00029298,2]
[341668452,1731078632516,-646.0262,0.00029306,2]
[341668453,1731078632525,-158.14,0.00029314,2]
[341668454,1731078632536,-158.14,0.00029331,2]
[341668455,1731078632546,-158.14,0.00029348,2]
[341668456,1731078632560,-158.14,0.00029366,2]
[341668457,1731078632570,-158.14,0.00029383,2]
[341668458,1731078632580,-250.0,0.00029395,2]
[341668459,1731078632590,-1167.97,0.000294,2]
[341668460,1731078632599,-158.14,0.000294,2]
[341668461,1731078632609,-14647.30545288,0.00029406,2]
[341668462,1731078632647,-9252.69454712,0.00029406,2]
[341668463,1731078632657,-158.14,0.00029417,2]
[341668464,1731078632667,-168.68,0.00029428,2]
[341668465,1731078632677,-158.14,0.00029434,2]
[341668466,1731078632686,-158.14,0.00029452,2]
[341668467,1731078632695,-158.14,0.00029469,2]
[341668468,1731078632705,-158.14,0.00029486,2]
[341668469,1731078632715,-158.14,0.00029503,2]
[341668470,1731078632725,-158.14,0.0002952,2]
[341668471,1731078632735,-151.97,0.0002954,30]
[341668472,1731078632746,-200.0,0.000296,2]
[341668473,1731078632755,-500.0,0.00029633,2]
[341668474,1731078632765,-530.13,0.00029666,2]
[341668475,1731078632775,-420.71,0.0002975,120]
[341668476,1731078632784,-700.0,0.000299,11]
[341668477,1731078632793,-700.0,0.000299,11]
[341668478,1731078632802,-700.0,0.000299,11]
[341668479,1731078632811,-700.0,0.000299,11]
[341668480,1731078632819,-700.0,0.000299,11]
[341668481,1731078632828,-774.09021018,0.000299,2]
[341668482,1731078632838,-774.09021009,0.000299,2]
[341668483,1731078632846,-774.09021009,0.000299,2]
[341668484,1731078632855,-150.0,0.0003,10]
[341668485,1731078632864,-530.13,0.00030128,2]
[341668486,1731078632874,-1238.391,0.00030134,25]
[341668487,1731078632883,-166.627,0.00030134,25]
[341668488,1731078632892,-232.06,0.00030137,2]
[341668489,1731078632902,-300.0,0.00030137,2]
[341668490,1731078632919,-270.68391767,0.00030137,2]
[341668491,1731078632928,-150.0,0.00030142,2]
[341668492,1731078632937,-1012.6,0.0003045,2]
[341668493,1731078632946,-314.66,0.0003047,2]
[341668494,1731078632956,-530.13,0.0003059,2]
[341668495,1731078632965,-167.38,0.00030646,2]
[341668496,1731078632974,-150.0,0.00030685,2]
[341668497,1731078632982,-406.91581894,0.00030711,2]
[341668498,1731078632993,-150.0,0.00030714,2]
[341668499,1731078633003,-150.0,0.00030777,2]
[341668500,1731078633011,-150.0,0.00030791,2]
[341668501,1731078633020,-685.8379,0.000308,2]
[341668502,1731078633029,-18418.5007,0.000308,2]
[341668503,1731078633038,-472.771,0.000308,2]
[341668504,1731078633047,-328.09670175,0.00030801,2]
[341668505,1731078633057,-1500.0,0.00030809,2]
[341668506,1731078633066,-233.81336892,0.00030815,2]
[341668507,1731078633075,-150.0,0.00030828,2]
[341668508,1731078633085,-1500.0,0.00030828,2]
[341668509,1731078633093,-150.0,0.0003084,2]
[341668510,1731078633103,-298.30041981,0.00030859,2]
[341668511,1731078633112,-152.6915162,0.0003088,2]
[341668512,1731078633122,-150.0,0.00030886,2]
[341668513,1731078633131,-1500.0,0.00030892,2]
[341668514,1731078633140,-500.0,0.00030899,2]
[341668515,1731078633149,-500.0,0.00030899,2]
[341668516,1731078633158,-500.0,0.00030899,2]
[341668517,1731078633167,-500.0,0.00030899,2]
[341668518,1731078633176,-178.1567458,0.00030899,2]
[341668519,1731078633184,-9180.81873043,0.000309,2]
[341668525,1731078637658,-317.9643758,0.000299,2]
[341668526,1731078637670,-456.12583429,0.000299,2]
[341668527,1731078637679,-166.0,0.000309,2]
[341668528,1731078637689,-8941.40166957,0.000309,2]
[341668529,1731078637699,-30284.1504,0.000309,2]
[341668530,1731078637709,-484.2422,0.000309,2]
[341668531,1731078637718,-2200.4365,0.000309,2]
[341668532,1731078637727,-3079.1009,0.000309,2]
[341668533,1731078637736,-6480.0795,0.000309,2]
[341668534,1731078637745,-49714.74194502,0.000309,2]
[341668535,1731078637756,-2610.0,0.000309,2]
[341668536,1731078638195,-6420.23970299,0.000309,2]
[341668537,1731078638206,-535.2143564,0.000309,2]
[341668538,1731078638217,-7636.53995505,0.000309,2]
[341668547,1731078638364,-1345.81088568,0.000309,2]
[341668573,1731078638602,-1234.63522344,0.000309,2]
[341668580,1731078638659,-544.78627137,0.000309,2]
[341668685,1731078639740,-288.688,0.000309,2]
[341668687,1731078639751,-499.98,0.000309,2]
[341668689,1731078639764,-724.81415247,0.000309,2]
[341668697,1731078639820,-370.27,0.000309,2]
[341668699,1731078639832,-255.50405844,0.000309,2]
[341668730,1731078640112,-303.03135185,0.000309,2]
[341669026,1731078642949,-774.09021009,0.000299,2]
[341669028,1731078642959,-3113.34478991,0.000309,2]
[341669030,1731078642971,-367.71350457,0.000309,2]
[341669032,1731078642982,-17698.75942873,0.000309,2]
[341669035,1731078642994,-31615.4826,0.000309,2]
[341669037,1731078643007,-4260.77299124,0.000309,2]
[341669039,1731078643018,-204287.32688284,0.000309,2]
[341669041,1731078643028,-1287.69657501,0.00030901,2]
[341669043,1731078643037,-150.0,0.00030921,2]
[341669045,1731078643046,-1551.82761493,0.00030955,2]
[341669047,1731078643055,-400.0,0.0003097,2]
[341669049,1731078643064,-700.0,0.0003097,2]
[341669051,1731078643074,-226.82829926,0.0003099,2]
[341669053,1731078643084,-256.84478514,0.00030999,2]
[341669055,1731078643094,-6452.52876888,0.00030999,2]
[341669057,1731078643103,-11771.94707394,0.00031,2]
[341669323,1731078645712,-1738.478,0.00031,2]
[341669351,1731078645969,-466.24004,0.00031,2]
[341669355,1731078645999,-74379.84081,0.00031,2]
[341669357,1731078646012,-36338.90456839,0.00031,2]
[341669359,1731078646024,-727.90686,0.00031,2]
[341669367,1731078646087,-300.0,0.00031,2]
[341670622,1731079093798,167.33,0.00015342,2]
[341670623,1731079508824,150.0,0.00016,2]
[341670624,1731079508847,150.0,0.00016,2]
[341670625,1731079508870,150.0,0.00016,2]
[341670626,1731079508894,150.0,0.00016,2]
[341670627,1731079508917,150.0,0.00016,2]
[341670628,1731079508940,150.0,0.00016,2]
[341670629,1731079508962,150.0,0.00016,2]
[341670630,1731079508986,150.0,0.00016,2]
[341670631,1731079509012,150.0,0.00016,2]
[341670632,1731079509034,150.0,0.00016,2]
[341670633,1731079509056,150.0,0.00016,2]
[341670634,1731079509078,150.0,0.00016,2]
[341670635,1731079509100,150.0,0.00016,2]
[341670636,1731079509122,150.0,0.00016,2]
[341670637,1731079509145,150.0,0.00016,2]
[341670638,1731079509172,150.0,0.00016,2]
[341670639,1731079509194,150.0,0.00016,2]
[341670640,1731079509220,2039803.49411824,0.00016,2]
[341670641,1731079520268,300.0,9e-05,2]
[341670643,1731079693960,150.0,0.0002,2]
[341670644,1731079693985,300.0,0.0002,2]
[341670648,1731079726322,150.0,0.0002,2]
[341670649,1731079726347,150.0,0.0002,2]
[341670653,1731079803440,150.0,0.0002,2]
[341670664,1731079832203,-450.0,0.00021,2]
[341670665,1731079832214,-500.0,0.00023,2]
[341670666,1731079832227,-1733.15,0.000242,3]
[341670674,1731079833602,150.0,0.00018123,2]
[341670675,1731079836944,160.0,0.00017,14]
[341670677,1731079837882,-411.69296433,0.000242,3]
[341670678,1731079838033,-350.15703567,0.000242,3]
[341670679,1731079838043,-550.0,0.00025,2]
[341670680,1731079838052,-1138.37,0.00026834,2]
[341670681,1731079838061,-600.0,0.00027,2]
[341670682,1731079838071,-2000.0,0.00027397,2]
[341670683,1731079838082,-548.96970406,0.000275,2]
[341670684,1731079838091,-2000.0,0.00027671,2]
[341670685,1731079838101,-851.6,0.000278,2]
[341670686,1731079838110,-2000.0,0.00027945,2]
[341670687,1731079838120,-2000.0,0.00028219,2]
[341670688,1731079838130,-452.601,0.0002827,2]
[341670689,1731079838139,-171.031,0.0002827,2]
[341670690,1731079838149,-895.059,0.0002827,2]
[341670691,1731079838159,-1090.0,0.0002827,2]
[341670692,1731079838169,-2000.0,0.00028493,2]
[341670693,1731079838178,-2000.0,0.00028767,2]
[341670694,1731079838187,-216.49,0.0002884,2]
[341670695,1731079838196,-250.0,0.00028858,2]
[341670696,1731079838206,-1000.0,0.00028865,2]
[341670697,1731079838217,-250.0,0.00028871,2]
[341670698,1731079838231,-650.0,0.00029,2]
[341670699,1731079838241,-436.12,0.00029,7]
[341670700,1731079838250,-2000.0,0.00029041,2]
[341670701,1731079838259,-1138.37,0.00029098,2]
[341670702,1731079838270,-250.0,0.00029231,2]
[341670703,1731079838282,-186.24,0.00029289,2]
[341670704,1731079838291,-303.7,0.000293,2]
[341670706,1731079838303,-1001.56,0.000293,2]
[341670707,1731079838517,-2000.0,0.00029315,2]
[341670708,1731079838528,-709.07,0.00029336,120]
[341670709,1731079838537,-177.33,0.00029358,2]
[341670710,1731079838546,-177.33,0.00029432,2]
[341670711,1731079838555,-164.51,0.00029446,2]
[341670712,1731079838565,-200.0,0.00029467,7]
[341670713,1731079838575,-177.33,0.00029505,2]
[341670714,1731079838584,-353.44,0.00029507,2]
[341670715,1731079838593,-157.67,0.00029526,30]
[341670716,1731079838603,-177.33,0.00029579,2]
[341670717,1731079838613,-200.0,0.000296,2]
[341670718,1731079838622,-180.55,0.00029606,2]
[341670719,1731079838631,-177.33,0.00029652,2]
[341670720,1731079838641,-12020.17920755,0.000297,2]
[341670721,1731079838651,-20502.37385216,0.000297,2]
[341670722,1731079838660,-12887.05,0.0002979,2]
[341670723,1731079838669,-2915.0,0.00029802,3]
[341670724,1731079838679,-990.713,0.00029818,24]
[341670725,1731079838688,-500.0,0.00029873,2]
[341670727,1731079838697,-307.44008859,0.00029899,2]
[341670729,1731079838706,-500.0,0.00029899,2]
[341670731,1731079838716,-585.88991285,0.00029899,2]
[341670732,1731079838725,-6571.40122322,0.000299,2]
[341670733,1731079838734,-37174.6239938,0.000299,10]
[341670734,1731079838743,-5418.63147063,0.000299,2]
[341670735,1731079838753,-700.0,0.00029925,11]
[341670736,1731079838763,-700.0,0.00029925,11]
[341670737,1731079838772,-700.0,0.00029925,11]
[341670738,1731079838787,-700.0,0.00029925,11]
[341670739,1731079838797,-700.0,0.00029925,11]
[341670740,1731079838807,-157.14,0.00029934,2]
[341670741,1731079838817,-353.44,0.00029973,2]
[341670742,1731079838827,-918.0,0.0003,2]
[341670743,1731079838836,-500.0,0.0003,7]
[341670744,1731079838846,-500.0,0.0003,7]
[341670745,1731079838856,-500.0,0.0003,7]
[341670746,1731079838865,-500.0,0.0003,7]
[341670747,1731079838875,-500.0,0.0003,7]
[341670748,1731079838884,-500.0,0.0003,7]
[341670749,1731079838893,-500.0,0.0003,7]
[341670750,1731079838904,-500.0,0.0003,7]
[341670751,1731079838913,-500.0,0.0003,7]
[341670752,1731079838923,-500.0,0.0003,7]
[341670753,1731079838932,-500.0,0.0003,7]
[341670754,1731079838942,-500.0,0.0003,7]
[341670755,1731079838952,-500.0,0.0003,7]
[341670756,1731079838961,-500.0,0.0003,7]
[341670757,1731079838970,-500.0,0.0003,7]
[341670758,1731079838980,-500.0,0.0003,7]
[341670759,1731079838989,-500.0,0.0003,7]
[341670760,1731079838999,-500.0,0.0003,7]
[341670761,1731079839008,-500.0,0.0003,7]
[341670762,1731079839017,-500.0,0.0003,7]
[341670763,1731079839029,-403.26341997,0.0003,7]
[341670764,1731079839083,-96.73658003,0.0003,7]
[341670765,1731079839092,-312.01906107,0.0003,7]
[341670766,1731079839314,-187.98093893,0.0003,7]
[341670767,1731079839323,-500.0,0.0003,7]
[341670768,1731079839332,-500.0,0.0003,7]
[341670769,1731079839341,-268.91906107,0.0003,7]
[341670770,1731079839354,-231.08093893,0.0003,7]
[341670771,1731079839364,-401.68093422,0.0003,7]
[341670772,1731079839375,-98.31906578,0.0003,7]
[341670773,1731079839385,-217.85093422,0.0003,7]
[341670774,1731079839504,-282.14906578,0.0003,7]
[341670775,1731079839514,-500.0,0.0003,7]
[341670776,1731079839524,-500.0,0.0003,7]
[341670777,1731079839536,-500.0,0.0003,7]
[341670778,1731079839546,-500.0,0.0003,7]
[341670779,1731079839555,-500.0,0.0003,7]
[341670780,1731079839565,-500.0,0.0003,7]
[341670781,1731079839574,-500.0,0.0003,7]
[341670782,1731079839584,-500.0,0.0003,7]
[341670783,1731079839593,-500.0,0.0003,7]
[341670784,1731079839602,-359.87,0.0003,7]
[341670785,1731079839612,-500.0,0.0003,7]
[341670786,1731079839622,-199.89,0.00030137,2]
[341670787,1731079839632,-261.80984331,0.00030137,2]
[341670788,1731079839641,-203.05,0.00030137,2]
[341670789,1731079839650,-150.0,0.00030243,2]
[341670790,1731079839660,-303.7,0.00030405,2]
[341670791,1731079839670,-353.44,0.0003044,2]
[341670792,1731079839679,-3603.0,0.000305,3]
[341670793,1731079839689,-2000.0,0.0003069,2]
[341670794,1731079839699,-150.0,0.0003073,2]
[341670795,1731079839709,-186.24,0.00030753,2]
[341670796,1731079839718,-627.48,0.000308,2]
[341670797,1731079839728,-4213.09858341,0.000308,15]
[341670798,1731079839738,-150.0,0.00030812,2]
[341670799,1731079839748,-150.0,0.00030819,2]
[341670801,1731079839758,-1001.56,0.00030865,2]
[341670802,1731079839767,-190.08,0.0003089,3]
[341670803,1731079839781,-663.5766,0.000309,2]
[341670804,1731079839791,-17698.7595,0.000309,2]
[341670805,1731079839801,-1000.0,0.000309,2]
[341670806,1731079839810,-500.0,0.000309,2]
[341670807,1731079839820,-243.99315807,0.00030902,2]
[341670808,1731079839830,-353.44,0.00030907,2]
[341670809,1731079839840,-200.0,0.00030923,2]
[341670810,1731079839849,-150.0,0.00030953,2]
[341670812,1731079839860,-200.0,0.00030954,2]
[341670814,1731079839869,-2945.6249995,0.00030992,2]
[341670817,1731079839879,-150.01,0.00030999,2]
[341670819,1731079839888,-410.72725931,0.00030999,2]
[341670821,1731079839898,-1291.21171228,0.00030999,2]
[341670822,1731079839908,-26981.72812458,0.00031,2]
[341670823,1731079839919,-201.3,0.00031,4]
[341670824,1731079839928,-398.0,0.00031,15]
[341670825,1731079839938,-797.0,0.00031,15]
[341670826,1731079839947,-1911.15663678,0.00031,2]
[341670827,1731079839957,-196.0,0.00031,15]
[341670828,1731079839967,-1000.0,0.00031,2]
[341670829,1731079839977,-1000.0,0.00031,2]
[341670830,1731079839986,-1000.0,0.00031,2]
[341670831,1731079839996,-1000.0,0.00031,2]
[341670832,1731079840005,-1000.0,0.00031,2]
[341670833,1731079840015,-1000.0,0.00031,2]
[341670834,1731079840024,-1000.0,0.00031,2]
[341670835,1731079840038,-1000.0,0.00031,2]
[341670836,1731079840048,-1000.0,0.00031,2]
[341670837,1731079840058,-1000.0,0.00031,2]
[341670838,1731079840067,-1000.0,0.00031,2]
[341670839,1731079840077,-1000.0,0.00031,2]
[341670840,1731079840087,-1000.0,0.00031,2]
[341670841,1731079840096,-1000.0,0.00031,2]
[341670842,1731079840106,-1000.0,0.00031,2]
[341670843,1731079840116,-1000.0,0.00031,2]
[341670844,1731079840126,-1000.0,0.00031,2]
[341670845,1731079840135,-1000.0,0.00031,2]
[341670846,1731079840145,-1000.0,0.00031,2]
[341670847,1731079840155,-1000.0,0.00031,2]
[341670848,1731079840165,-1000.0,0.00031,2]
[341670849,1731079840174,-1000.0,0.00031,2]
[341670850,1731079840183,-1000.0,0.00031,2]
[341670851,1731079840193,-1000.0,0.00031,2]
[341670852,1731079840202,-1000.0,0.00031,2]
[341670853,1731079840212,-1000.0,0.00031,2]
[341670854,1731079840222,-1000.0,0.00031,2]
[341670855,1731079840236,-1000.0,0.00031,2]
[341670856,1731079840246,-1000.0,0.00031,2]
[341670857,1731079840255,-1000.0,0.00031,2]
[341670858,1731079840265,-1000.0,0.00031,2]
[341670859,1731079840275,-1000.0,0.00031,2]
[341670860,1731079840292,-1000.0,0.00031,2]
[341670861,1731079840303,-1000.0,0.00031,2]
[341670863,1731079840313,-540.99469195,0.00031,2]
[341670865,1731079840322,-1161.0,0.00031,19]
[341670867,1731079840331,-700.0,0.00031,2]
[341670869,1731079840341,-3000.0,0.00031,2]
[341670871,1731079840351,-277.197,0.00031,120]
[341670873,1731079840360,-2025.41,0.00031014,2]
[341670875,1731079840370,-152.0,0.00031056,3]
[341670877,1731079840380,-11553.0,0.000311,5]
[341670879,1731079840390,-200.0,0.00031232,2]
[341670881,1731079840400,-2000.0,0.00031233,2]
[341670883,1731079840410,-3000.0,0.00031233,7]
[341670885,1731079840419,-518.85676756,0.00031242,2]
[341670887,1731079840429,-965.29,0.00031256,2]
[341670889,1731079840439,-1138.37,0.00031362,2]
[341670891,1731079840448,-353.44,0.00031373,2]
[341670894,1731079840458,-500.0,0.0003142,2]
[341670896,1731079840467,-500.0,0.0003142,2]
[341670898,1731079840476,-500.0,0.0003142,2]
[341670900,1731079840486,-296.52067869,0.0003142,2]
[341670902,1731079840496,-57536.37696785,0.00031421,2]
[341670904,1731079840505,-2396.38587432,0.00031421,2]
[341670906,1731079840515,-13683.21069163,0.0003143,4]
[341670908,1731079840524,-500.14592014,0.00031473,5]
[341670910,1731079840540,-1161.0,0.000315,20]
[341670912,1731079840549,-200.0,0.00031506,2]
[341670914,1731079840560,-2000.0,0.00031507,2]
[341670916,1731079840569,-3000.0,0.00031507,7]
[341670919,1731079840579,-51855.01913672,0.00031507,2]
[341670921,1731079840588,-306.97804,0.0003151,2]
[341670922,1731079840597,-110173.243298,0.0003153,7]
[341670925,1731079840607,-23199.41386482,0.0003153,7]
[341670927,1731079840617,-150.0,0.0003157,7]
[341670929,1731079840626,-200.0,0.0003178,2]
[341670931,1731079840635,-2000.0,0.00031781,2]
[341670932,1731079840644,-3000.0,0.00031781,7]
[341670934,1731079840653,-353.44,0.0003184,2]
[341670936,1731079840663,-3000.0,0.00031876,10]
[341670938,1731079840672,-496.8060188,0.00031899,3]
[341670940,1731079840682,-179.96911194,0.00031899,2]
[341670942,1731079840691,-1333.0,0.00031945,120]
[341670944,1731079840701,-224.02895719,0.0003199,2]
[341670946,1731079840711,-151.0,0.00031998,7]
[341670948,1731079840720,-151.0,0.00031998,7]
[341670950,1731079840729,-151.0,0.00031998,7]
[341670952,1731079840738,-151.0,0.00031998,7]
[341670954,1731079840748,-151.0,0.00031998,7]
[341670956,1731079840758,-151.0,0.00031998,7]
[341670958,1731079840767,-151.0,0.00031998,7]
[341670960,1731079840781,-249.056413,0.00031998,7]
[341670962,1731079840796,-151.0,0.00031999,7]
[341670964,1731079840806,-1850.79843083,0.00031999,2]
[341670966,1731079840815,-179.617765,0.00031999,7]
[341670968,1731079840825,-209.56287,0.00031999,7]
[341670970,1731079840834,-151.0,0.00031999,7]
[341670972,1731079840843,-151.0,0.00031999,7]
[341670974,1731079840853,-151.0,0.00031999,7]
[341670976,1731079840862,-162.900695,0.00031999,7]
[341670978,1731079840871,-151.0,0.00031999,7]
[341670980,1731079840881,-151.0,0.00031999,7]
[341670982,1731079840891,-151.0,0.00031999,7]
[341670984,1731079840900,-151.0,0.00031999,7]
[341670986,1731079840910,-151.0,0.00031999,7]
[341670988,1731079840921,-1868.96,0.00031999,120]
[341670990,1731079840931,-151.0,0.00031999,7]
[341670992,1731079840941,-175.855525,0.00031999,7]
[341670993,1731079840951,-175.855525,0.00031999,7]
[341670995,1731079840961,-500.0,0.00031999,2]
[341670997,1731079840971,-2674.06,0.00031999,120]
[341671000,1731079840980,-486393.20678439,0.00032,30]